fUSD/lending_fUSD_20260112
["ID","MTS","AMOUNT","RATE_DAILY","PERIOD"]
[401415992,1768194642132,-150.0,0.0001665,2]
[401415993,1768194642141,-150.0,0.0001665,2]
[401415994,1768194642150,-150.0,0.0001665,2]
[401415995,1768194642159,-150.0,0.0001665,2]
[401415996,1768194642168,-350.68764993,0.00016655,2]
[401415997,1768194642177,-671.54,0.00016655,2]
[401415998,1768194642187,-350.68764993,0.00016673,2]
[401415999,1768194642197,-350.68764993,0.00016691,2]
[401416000,1768194642206,-219.07665552,0.00016697,2]
[401416001,1768194642216,-10277.73404171,0.00016697,2]
[401416002,1768194642227,-350.68764993,0.00016709,2]
[401416003,1768194642236,-1282.33,0.00016712,2]
[401416004,1768194642246,-150.0,0.00016714,2]
[401416005,1768194642255,-150.0,0.00016714,2]
[401416006,1768194642264,-350.68764993,0.00016727,2]
[401416007,1768194642275,-500.0,0.00016732,2]
[401416008,1768194642285,-551.14146089,0.00016732,2]
[401416009,1768194642294,-522.479568,0.00016732,2]
[401416010,1768194642304,-150.0,0.0001674,2]
[401416011,1768194642313,-350.68764993,0.00016745,2]
[401416012,1768194642323,-404.51117323,0.00016752,2]
[401416013,1768194642333,-200.63190487,0.00016752,2]
[401416014,1768194642343,-150.0,0.00016754,2]
[401416015,1768194642352,-350.68764993,0.00016764,2]
[401416016,1768194642361,-350.68764993,0.00016782,2]
[401416017,1768194642370,-1000.0,0.00016785,2]
[401416018,1768194642379,-4831.1649,0.00016792,2]
[401416019,1768194642389,-150.0,0.000168,2]
[401416020,1768194642399,-150.0,0.000168,2]
[401416021,1768194642409,-150.0,0.000168,2]
[401416022,1768194642418,-350.68764993,0.000168,2]
[401416023,1768194642427,-350.68764993,0.00016818,2]
[401416024,1768194642437,-306.38,0.00016821,2]
[401416025,1768194642446,-350.68764993,0.00016836,2]
[401416026,1768194642459,-150.0,0.00016843,2]
[401416027,1768194642469,-150.0,0.00016843,2]
[401416028,1768194642479,-350.68764993,0.00016855,2]
[401416029,1768194642491,-350.68764993,0.00016873,2]
[401416030,1768194642502,-150.0,0.00016875,2]
[401416031,1768194642512,-150.0,0.00016875,2]
[401416032,1768194642521,-1852.42,0.00016877,2]
[401416033,1768194642532,-1073.4,0.00016882,2]
[401416034,1768194642542,-350.68764993,0.00016891,2]
[401416035,1768194642551,-150.0,0.00016892,2]
[401416036,1768194642561,-617.40005154,0.00016893,2]
[401416037,1768194642570,-12275.41813319,0.00016895,2]
[401416038,1768194642580,-350.68764993,0.00016909,2]
[401416039,1768194642590,-150.0,0.0001692,2]
[401416040,1768194642599,-350.68764993,0.00016927,2]
[401416041,1768194642610,-350.68764993,0.00016945,2]
[401416042,1768194642620,-150.0,0.0001695,2]
[401416043,1768194642630,-823.0,0.00016955,2]
[401416044,1768194642640,-350.68764993,0.00016964,2]
[401416045,1768194642650,-150.0,0.00016971,2]
[401416046,1768194642660,-150.0,0.00016971,2]
[401416047,1768194642669,-350.68764993,0.00016982,2]
[401416048,1768194642679,-1073.4,0.00016984,2]
[401416049,1768194642688,-1282.33,0.00016986,2]
[401416050,1768194642699,-1000.0,0.00016999,2]
[401416051,1768194642709,-350.68764993,0.00017,2]
[401416052,1768194642718,-350.68764993,0.00017018,2]
[401416053,1768194642728,-150.0,0.00017031,2]
[401416054,1768194642738,-350.68764993,0.00017036,2]
[401416055,1768194642747,-843.0,0.0001704,2]
[401416056,1768194642757,-4979.0,0.0001704,2]
[401416057,1768194642767,-350.68764993,0.00017055,2]
[401416058,1768194642776,-500.64635657,0.00017073,2]
[401416059,1768194642786,-173.30819609,0.00017073,2]
[401416060,1768194642795,-500.0,0.00017073,2]
[401416061,1768194642805,-500.0,0.00017073,2]
[401416062,1768194642813,-500.84079337,0.00017073,2]
[401416063,1768194642823,-500.0,0.00017073,2]
[401416064,1768194642832,-500.0,0.00017073,2]
[401416065,1768194642841,-166.96227274,0.00017073,2]
[401416066,1768194642851,-500.0,0.00017073,2]
[401416067,1768194642861,-500.0,0.00017073,2]
[401416068,1768194642870,-501.77861007,0.00017073,2]
[401416069,1768194642879,-500.0,0.00017073,2]
[401416070,1768194642889,-540.4577012,0.00017073,2]
[401416071,1768194642899,-500.51842778,0.00017073,2]
[401416072,1768194642908,-500.0,0.00017073,2]
[401416073,1768194642917,-500.0,0.00017073,2]
[401416074,1768194642928,-500.0,0.00017073,2]
[401416075,1768194642939,-500.83788468,0.00017073,2]
[401416076,1768194642948,-500.0,0.00017073,2]
[401416077,1768194642958,-162.59101262,0.00017073,2]
[401416078,1768194642968,-500.38035534,0.00017073,2]
[401416079,1768194642980,-500.26791262,0.00017073,2]
[401416080,1768194642990,-500.0,0.00017073,2]
[401416081,1768194643000,-647.42016729,0.00017073,2]
[401416082,1768194643010,-169.17232811,0.00017073,2]
[401416083,1768194643020,-500.85931304,0.00017073,2]
[401416084,1768194643030,-500.0,0.00017073,2]
[401416085,1768194643040,-503.84192068,0.00017073,2]
[401416086,1768194643049,-500.53829083,0.00017073,2]
[401416087,1768194643059,-501.85422751,0.00017073,2]
[401416088,1768194643069,-500.0,0.00017073,2]
[401416089,1768194643079,-500.0,0.00017073,2]
[401416090,1768194643090,-500.0,0.00017073,2]
[401416091,1768194643101,-503.00247421,0.00017073,2]
[401416092,1768194643112,-500.57959935,0.00017073,2]
[401416093,1768194643122,-500.0,0.00017073,2]
[401416094,1768194643131,-486.88056707,0.00017073,2]
[401416095,1768194643141,-500.19211788,0.00017073,2]
[401416096,1768194643151,-500.32712274,0.00017073,2]
[401416097,1768194643160,-350.68764993,0.00017073,2]
[401416098,1768194643170,-30000.0,0.00017084,2]
[401416099,1768194643179,-1073.4,0.00017085,2]
[401416100,1768194643189,-350.68764993,0.00017091,2]
[401416101,1768194643199,-150.0,0.000171,2]
[401416102,1768194643208,-150.0,0.000171,2]
[401416103,1768194643218,-150.0,0.000171,2]
[401416104,1768194643227,-150.0,0.000171,2]
[401416105,1768194643237,-150.0,0.000171,2]
[401416106,1768194643247,-150.0,0.000171,2]
[401416107,1768194643259,-150.0,0.000171,2]
[401416108,1768194643272,-150.0,0.000171,2]
[401416109,1768194643282,-3292.0,0.00017102,2]
[401416110,1768194643294,-350.68764993,0.00017109,2]
[401416111,1768194643304,-1000.0,0.00017112,2]
[401416112,1768194643314,-350.68764993,0.00017127,2]
[401416113,1768194643323,-350.68764993,0.00017145,2]
[401416114,1768194643333,-350.68764993,0.00017164,2]
[401416115,1768194643342,-150.0,0.00017169,2]
[401416116,1768194643351,-2883.63510289,0.00017178,2]
[401416117,1768194643362,-281.83931929,0.00017178,2]
[401416118,1768194643371,-2995.17829643,0.00017178,2]
[401416119,1768194643380,-1119.21541804,0.00017178,2]
[401416120,1768194643390,-350.68764993,0.00017182,2]
[401416121,1768194643399,-1073.4,0.00017187,2]
[401416122,1768194643409,-350.68764993,0.000172,2]
[401416123,1768194643419,-4700.0,0.000172,6]
[401416124,1768194643429,-350.68764993,0.00017218,2]
[401416125,1768194643438,-150.0,0.00017229,2]
[401416126,1768194643449,-150.0,0.00017229,2]
[401416127,1768194643461,-350.68764993,0.00017236,2]
[401416128,1768194643470,-4979.0,0.0001724,2]
[401416129,1768194643479,-150.0,0.0001725,2]
[401416130,1768194643490,-1120.92,0.00017252,2]
[401416131,1768194643500,-350.68764993,0.00017255,2]
[401416132,1768194643509,-1282.33,0.0001726,2]
[401416133,1768194643520,-350.68764993,0.00017273,2]
[401416134,1768194643529,-150.0,0.0001728,2]
[401416135,1768194643538,-1073.4,0.00017289,2]
[401416136,1768194643549,-350.68764993,0.00017291,2]
[401416138,1768194643558,-10277.73404171,0.00017299,2]
[401416139,1768194643568,-6300.0,0.000173,6]
[401416140,1768194643578,-150.0,0.00017308,2]
[401416141,1768194643587,-1000.0,0.00017309,2]
[401416142,1768194643597,-350.68764993,0.00017309,2]
[401416143,1768194643607,-150.0,0.00017325,2]
[401416144,1768194643616,-150.0,0.00017325,2]
[401416145,1768194643625,-350.68764993,0.00017327,2]
[401416146,1768194643635,-1000.0,0.00017331,2]
[401416147,1768194643644,-350.68764993,0.00017345,2]
[401416148,1768194643654,-150.0,0.00017357,2]
[401416149,1768194643663,-150.0,0.00017357,2]
[401416150,1768194643673,-162.0,0.0001736,2]
[401416151,1768194643683,-350.68764993,0.00017364,2]
[401416152,1768194643693,-170.21,0.00017371,2]
[401416153,1768194643704,-350.68764993,0.00017382,2]
[401416154,1768194643714,-158.73335703,0.00017385,2]
[401416155,1768194643723,-1073.4,0.0001739,2]
[401416156,1768194643733,-12275.41813319,0.00017398,2]
[401416157,1768194643742,-150.0,0.000174,2]
[401416158,1768194643752,-150.0,0.000174,2]
[401416159,1768194643761,-150.0,0.000174,2]
[401416160,1768194643771,-350.68764993,0.000174,2]
[401416161,1768194643781,-1000.0,0.000174,2]
[401416162,1768194643790,-7900.0,0.000174,6]
[401416163,1768194643800,-170.21,0.00017412,2]
[401416164,1768194643810,-350.68764993,0.00017418,2]
[401416165,1768194643819,-1000.0,0.0001743,2]
[401416166,1768194643829,-350.68764993,0.00017436,2]
[401416167,1768194643839,-346.92554585,0.00017439,2]
[401416168,1768194643848,-666.72878,0.00017439,2]
[401416169,1768194643858,-3469.0,0.00017439,2]
[401416170,1768194643867,-614.0,0.00017439,2]
[401416171,1768194643877,-1405.0,0.00017439,2]
[401416172,1768194643886,-1330.0,0.00017439,2]
[401416173,1768194643896,-505.0,0.00017439,2]
[401416174,1768194643906,-1267.0,0.00017439,2]
[401416175,1768194643917,-914.0,0.00017439,2]
[401416176,1768194643926,-1201.0,0.00017439,2]
[401416177,1768194643936,-566.0,0.0001744,2]
[401416178,1768194643945,-4821.0,0.0001744,2]
[401416179,1768194643955,-2437.0,0.0001744,2]
[401416180,1768194643966,-998.0,0.0001744,2]
[401416181,1768194643978,-640.24385345,0.00017441,2]
[401416182,1768194643987,-150.0,0.00017446,2]
[401416183,1768194643997,-170.21,0.00017452,2]
[401416184,1768194644008,-350.68764993,0.00017455,2]
[401416185,1768194644020,-1000.0,0.00017459,2]
[401416186,1768194644030,-150.0,0.0001746,2]
[401416187,1768194644039,-20000.0,0.00017463,7]
[401416188,1768194644051,-350.68764993,0.00017473,2]
[401416189,1768194644061,-4979.0,0.00017481,2]
[401416190,1768194644072,-150.0,0.00017486,2]
[401416191,1768194644083,-150.0,0.00017486,2]
[401416192,1768194644094,-350.68764993,0.00017491,2]
[401416193,1768194644105,-1073.4,0.00017492,2]
[401416194,1768194644114,-1000.0,0.00017497,2]
[401416195,1768194644127,-2000.0,0.000175,2]
[401416196,1768194644138,-1000.0,0.000175,2]
[401416197,1768194644147,-1500.0,0.000175,6]
[401416198,1768194644157,-1000.0,0.00017502,2]
[401416199,1768194644167,-3240.0,0.00017507,2]
[401416200,1768194644178,-350.68764993,0.00017509,2]
[401416201,1768194644188,-350.68764993,0.00017527,2]
[401416202,1768194644197,-1000.0,0.00017533,2]
[401416203,1768194644207,-1282.33,0.00017534,2]
[401416204,1768194644217,-1000.0,0.00017541,2]
[401416205,1768194644227,-1000.0,0.00017543,2]
[401416206,1768194644236,-350.68764993,0.00017545,2]
[401416207,1768194644246,-150.0,0.0001755,2]
[401416208,1768194644256,-150.0,0.0001755,2]
[401416209,1768194644266,-150.0,0.0001755,2]
[401416210,1768194644275,-150.0,0.0001755,2]
[401416211,1768194644285,-1046.89,0.00017552,2]
[401416212,1768194644295,-1997.0,0.00017552,2]
[401416213,1768194644306,-1997.0,0.00017557,2]
[401416214,1768194644315,-1000.0,0.00017561,2]
[401416215,1768194644326,-350.68764993,0.00017564,2]
[401416216,1768194644336,-1000.0,0.00017571,2]
[401416217,1768194644349,-1000.0,0.00017574,2]
[401416218,1768194644359,-350.68764993,0.00017582,2]
[401416219,1768194644368,-1000.0,0.00017583,2]
[401416220,1768194644379,-150.0,0.00017585,2]
[401416221,1768194644388,-500.0,0.00017593,2]
[401416222,1768194644397,-1073.4,0.00017593,2]
[401416223,1768194644407,-1377.0,0.00017594,2]
[401416224,1768194644416,-1000.0,0.00017594,2]
[401416227,1768194644427,-1000.0,0.000176,2]
[401416230,1768194644436,-350.68764993,0.000176,2]
[401416233,1768194644450,-1500.0,0.000176,6]
[401416235,1768194644459,-1000.0,0.00017609,2]
[401416237,1768194644467,-150.0,0.00017614,2]
[401416239,1768194644476,-150.0,0.00017614,2]
[401416241,1768194644488,-350.68764993,0.00017618,2]
[401416242,1768194644497,-1000.0,0.0001762,2]
[401416243,1768194644507,-1997.0,0.0001762,2]
[401416244,1768194644517,-604.83613644,0.00017621,2]
[401416245,1768194644784,-1002.68294103,0.00017621,2]
[401416246,1768194644795,-501.68963282,0.00017621,2]
[401416247,1768194644804,-1001.39881462,0.00017621,2]
[401416248,1768194644814,-500.52073568,0.00017621,2]
[401416249,1768194644824,-1001.49774725,0.00017621,2]
[401416250,1768194644833,-1000.0,0.00017621,2]
[401416251,1768194644843,-1000.0,0.00017621,2]
[401416252,1768194644852,-1001.98142269,0.00017621,2]
[401416253,1768194644862,-1000.0,0.00017621,2]
[401416254,1768194644871,-1002.11848052,0.00017621,2]
[401416255,1768194644880,-1000.0,0.00017621,2]
[401416256,1768194644890,-501.81552952,0.00017621,2]
[401416257,1768194644899,-1000.0,0.00017621,2]
[401416258,1768194644909,-502.50985622,0.00017621,2]
[401416259,1768194644919,-1000.0,0.00017621,2]
[401416260,1768194644930,-1000.0,0.00017621,2]
[401416261,1768194644939,-1997.0,0.00017621,2]
[401416262,1768194644948,-1000.0,0.00017627,2]
[401416263,1768194644959,-350.68764993,0.00017636,2]
[401416264,1768194644969,-150.0,0.0001764,2]
[401416265,1768194644979,-2526.34474309,0.0001764,2]
[401416266,1768194644989,-350.68764993,0.00017655,2]
[401416267,1768194644999,-1377.0,0.00017656,2]
[401416268,1768194645008,-1000.0,0.00017666,2]
[401416269,1768194645018,-1997.0,0.00017671,2]
[401416270,1768194645029,-350.68764993,0.00017673,2]
[401416271,1768194645040,-1000.0,0.00017676,2]
[401416272,1768194645050,-1000.0,0.00017684,2]
[401416273,1768194645061,-350.68764993,0.00017691,2]
[401416274,1768194645073,-1073.4,0.00017695,2]
[401416275,1768194645082,-150.0,0.000177,2]
[401416276,1768194645093,-150.0,0.000177,2]
[401416277,1768194645104,-4307.04643237,0.000177,2]
[401416278,1768194645113,-1000.0,0.000177,2]
[401416279,1768194645123,-1500.0,0.000177,6]
[401416280,1768194645132,-565.40476895,0.00017701,2]
[401416281,1768194645142,-1000.0,0.00017709,2]
[401416282,1768194645151,-350.68764993,0.00017709,2]
[401416283,1768194645161,-150.0,0.00017723,2]
[401416284,1768194645171,-350.68764993,0.00017727,2]
[401416285,1768194645180,-1000.0,0.00017734,2]
[401416286,1768194645190,-150.0,0.00017743,2]
[401416287,1768194645202,-150.0,0.00017743,2]
[401416288,1768194645212,-1377.0,0.00017745,2]
[401416289,1768194645222,-350.68764993,0.00017745,2]
[401416290,1768194645233,-317.89217192,0.00017747,2]
[401416291,1768194645243,-378.23,0.00017753,2]
[401416292,1768194645254,-1997.0,0.0001776,2]
[401416293,1768194645265,-350.68764993,0.00017764,2]
[401416294,1768194645275,-150.0,0.00017775,2]
[401416295,1768194645286,-150.0,0.00017775,2]
[401416296,1768194645295,-350.68764993,0.00017782,2]
[401416297,1768194645307,-1000.0,0.00017788,2]
[401416298,1768194645316,-1000.0,0.00017793,2]
[401416299,1768194645326,-500.0,0.00017797,2]
[401416300,1768194645336,-500.0,0.00017797,2]
[401416301,1768194645346,-510.98377513,0.00017797,2]
[401416302,1768194645355,-1000.0,0.00017797,2]
[401416303,1768194645364,-1073.4,0.00017797,2]
[401416304,1768194645375,-1000.0,0.000178,2]
[401416305,1768194645389,-350.68764993,0.000178,2]
[401416306,1768194645399,-1500.0,0.000178,6]
[401416307,1768194645408,-156.587,0.00017807,2]
[401416308,1768194645418,-1282.44109109,0.00017808,2]
[401416309,1768194645430,-150.67981664,0.00017808,2]
[401416310,1768194645440,-350.68764993,0.00017818,2]
[401416311,1768194645455,-1000.0,0.0001782,2]
[401416312,1768194645467,-150.0,0.0001782,2]
[401416313,1768194645478,-385.31676,0.0001782,2]
[401416314,1768194645489,-385.31676,0.0001782,2]
[401416315,1768194645498,-910.24842296,0.0001782,2]
[401416316,1768194645507,-317.89217191,0.00017824,2]
[401416317,1768194645517,-25000.0,0.0001783,3]
[401416318,1768194645527,-385.31676,0.0001783,2]
[401416319,1768194645537,-150.0,0.0001783,2]
[401416320,1768194645547,-191.78307443,0.00017831,2]
[401416321,1768194645556,-350.68764993,0.00017836,2]
[401416322,1768194645566,-25000.0,0.00017838,3]
[401416323,1768194645576,-1000.0,0.00017847,2]
[401416324,1768194645585,-25000.0,0.00017847,3]
[401416325,1768194645595,-150.0,0.0001785,2]
[401416326,1768194645605,-350.68764993,0.00017855,2]
[401416327,1768194645615,-500.0,0.00017855,2]
[401416328,1768194645626,-200.0,0.00017855,2]
[401416329,1768194645636,-1046.89,0.00017855,2]
[401416330,1768194645645,-25000.0,0.00017856,3]
[401416331,1768194645655,-200.0,0.00017856,2]
[401416332,1768194645665,-385.31676,0.0001786,2]
[401416333,1768194645675,-150.0,0.00017862,2]
[401416334,1768194645685,-25000.0,0.00017865,3]
[401416335,1768194645694,-150.0,0.00017871,2]
[401416336,1768194645705,-150.0,0.00017871,2]
[401416337,1768194645715,-350.68764993,0.00017873,2]
[401416338,1768194645724,-25000.0,0.00017874,3]
[401416339,1768194645734,-1997.0,0.00017878,2]
[401416340,1768194645745,-385.31677,0.0001788,2]
[401416341,1768194645754,-25000.0,0.00017882,3]
[401416342,1768194645764,-500.0,0.0001789,2]
[401416343,1768194645774,-500.0,0.0001789,2]
[401416344,1768194645783,-350.68764993,0.00017891,2]
[401416345,1768194645793,-25000.0,0.00017891,3]
[401416346,1768194645803,-1000.0,0.00017895,2]
[401416347,1768194645812,-1073.4,0.00017898,2]
[401416348,1768194645822,-5620.58579508,0.000179,2]
[401416349,1768194645832,-1054.4366,0.000179,2]
[401416350,1768194645841,-25000.0,0.000179,3]
[401416351,1768194645851,-1000.0,0.000179,2]
[401416352,1768194645860,-1263.93132596,0.000179,2]
[401416353,1768194645871,-1263.93132596,0.000179,2]
[401416354,1768194645882,-1263.93132596,0.000179,2]
[401416355,1768194645892,-317.89217191,0.000179,2]
[401416356,1768194645902,-1263.93132596,0.000179,2]
[401416357,1768194645912,-1263.93132596,0.000179,2]
[401416358,1768194645923,-1263.93132596,0.000179,2]
[401416359,1768194645932,-14981.27545297,0.000179,3]
[401416360,1768194645942,-2338.0,0.000179,6]
[401416361,1768194645951,-1263.93132596,0.000179,2]
[401416362,1768194645960,-1263.93132596,0.000179,2]
[401416363,1768194645969,-10277.73404171,0.000179,2]
[401416364,1768194645980,-718.34267946,0.000179,3]
[401416365,1768194645989,-12275.41813319,0.000179,2]
[401416366,1768194645999,-5424.51026009,0.000179,2]
[401416367,1768194646008,-230.0973816,0.000179,2]
[401416368,1768194646018,-1000.0,0.00017907,2]
[401416369,1768194646029,-350.68764993,0.00017909,2]
[401416370,1768194646038,-385.31676,0.0001791,2]
[401416371,1768194646048,-1997.0,0.00017912,2]
[401416372,1768194646058,-28047.0,0.00017918,2]
[401416373,1768194646068,-1000.0,0.0001792,2]
[401416374,1768194646078,-350.68764993,0.00017927,2]
[401416375,1768194646090,-1000.0,0.00017935,2]
[401416376,1768194646100,-1000.0,0.00017943,2]
[401416377,1768194646109,-350.68764993,0.00017945,2]
[401416378,1768194646119,-1000.0,0.0001795,2]
[401416379,1768194646129,-350.68764993,0.00017964,2]
[401416380,1768194646138,-152.14276638,0.0001797,2]
[401416381,1768194646148,-500.0,0.00017972,2]
[401416382,1768194646159,-381.34584895,0.00017973,2]
[401416383,1768194646170,-500.0,0.00017973,2]
[401416384,1768194646180,-501.47661499,0.00017973,2]
[401416385,1768194646191,-503.67264874,0.00017973,2]
[401416386,1768194646201,-500.55153068,0.00017973,2]
[401416387,1768194646211,-501.78685961,0.00017973,2]
[401416388,1768194646221,-503.85916191,0.00017973,2]
[401416389,1768194646231,-498.39272947,0.00017973,2]
[401416390,1768194646241,-501.38258594,0.00017973,2]
[401416391,1768194646250,-501.10571804,0.00017973,2]
[401416392,1768194646261,-515.69548792,0.00017973,2]
[401416393,1768194646270,-500.0,0.00017973,2]
[401416394,1768194646279,-500.0,0.00017973,2]
[401416395,1768194646289,-500.0,0.00017973,2]
[401416396,1768194646299,-501.12911319,0.00017973,2]
[401416397,1768194646308,-502.23302881,0.00017973,2]
[401416398,1768194646317,-644.05438872,0.00017973,2]
[401416399,1768194646327,-502.86808452,0.00017973,2]
[401416400,1768194646336,-153.49935164,0.00017973,2]
[401416401,1768194646345,-1046.89,0.00017979,2]
[401416402,1768194646355,-265.0,0.0001798,2]
[401416403,1768194646364,-150.0,0.0001798,2]
[401416404,1768194646373,-200.0,0.0001798,2]
[401416405,1768194646383,-213.0,0.0001798,2]
[401416406,1768194646393,-194.425,0.0001798,2]
[401416407,1768194646402,-250.0,0.0001798,2]
[401416408,1768194646411,-226.708,0.0001798,2]
[401416409,1768194646420,-211.999,0.0001798,2]
[401416410,1768194646431,-250.0,0.0001798,2]
[401416411,1768194646441,-157.467,0.0001798,2]
[401416412,1768194646453,-190.963,0.0001798,2]
[401416414,1768194646463,-163.847,0.0001798,2]
[401416416,1768194646472,-212.004,0.0001798,2]
[401416417,1768194646483,-250.0,0.0001798,2]
[401416418,1768194646494,-169.0,0.0001798,2]
[401416419,1768194646503,-229.743,0.0001798,2]
[401416420,1768194646513,-150.64484772,0.0001798,2]
[401416421,1768194646525,-1047.04298225,0.0001798,2]
[401416422,1768194646535,-350.68764993,0.00017982,2]
[401416423,1768194646544,-152.92662848,0.00017982,2]
[401416425,1768194646553,-500.0,0.00017982,2]
[401416426,1768194646564,-663.93287602,0.00017989,2]
[401416427,1768194646573,-1000.0,0.00017989,2]
[401416428,1768194646584,-150.0,0.0001799,2]
[401416429,1768194646594,-150.0,0.0001799,2]
[401416430,1768194646603,-1047.04298225,0.0001799,2]
[401416431,1768194646613,-1047.04298225,0.0001799,2]
[401416432,1768194646623,-1997.0,0.00017997,2]
[401416434,1768194646633,-1000.0,0.00017997,2]
[401416435,1768194646643,-1000.0,0.00017998,2]
[401416436,1768194646652,-262.49854168,0.00017999,2]
[401416437,1768194646662,-1110.78417923,0.00017999,5]
[401416438,1768194646671,-1110.78417922,0.00017999,5]
[401416439,1768194646681,-309.21289699,0.00017999,2]
[401416440,1768194646691,-500.0,0.00017999,2]
[401416441,1768194646701,-500.0,0.00017999,2]
[401416442,1768194646710,-500.0,0.00017999,2]
[401416443,1768194646720,-500.0,0.00017999,2]
[401416444,1768194646730,-500.0,0.00017999,2]
[401416445,1768194646741,-500.0,0.00017999,2]
[401416446,1768194646751,-500.0,0.00017999,2]
[401416447,1768194646761,-500.0,0.00017999,2]
[401416448,1768194646771,-500.0,0.00017999,2]
[401416449,1768194646781,-500.0,0.00017999,2]
[401416450,1768194646791,-500.0,0.00017999,2]
[401416451,1768194646803,-456.07319796,0.00017999,2]
[401416452,1768194646812,-300.0,0.00017999,2]
[401416453,1768194646821,-673.04563665,0.00017999,2]
[401416454,1768194646831,-300.0,0.00017999,2]
[401416455,1768194646840,-300.0,0.00017999,2]
[401416456,1768194646851,-666.0,0.00017999,2]
[401416457,1768194646860,-300.0,0.00017999,2]
[401416458,1768194646870,-666.0,0.00017999,2]
[401416459,1768194646880,-1046.89,0.00017999,2]
[401416460,1768194646889,-1046.89,0.00017999,2]
[401416461,1768194646899,-1046.89,0.00017999,2]
[401416462,1768194646908,-1046.89,0.00017999,2]
[401416463,1768194646917,-1046.89,0.00017999,2]
[401416464,1768194646927,-1046.89,0.00017999,2]
[401416465,1768194646939,-1046.89,0.00017999,2]
[401416466,1768194646948,-1046.89,0.00017999,2]
[401416467,1768194646958,-1046.89,0.00017999,2]
[401416468,1768194646967,-1046.89,0.00017999,2]
[401416469,1768194646976,-1046.89,0.00017999,2]
[401416470,1768194646986,-1046.89,0.00017999,2]
[401416471,1768194646995,-1046.89,0.00017999,2]
[401416472,1768194647004,-1046.89,0.00017999,2]
[401416473,1768194647014,-1046.92509882,0.00017999,2]
[401416474,1768194647024,-300.0,0.00017999,2]
[401416475,1768194647034,-666.0,0.00017999,2]
[401416476,1768194647044,-154.38953807,0.00018,2]
[401416477,1768194647055,-156.71525667,0.00018,2]
[401416478,1768194647066,-154.70586823,0.00018,2]
[401416479,1768194647076,-155.99258279,0.00018,2]
[401416480,1768194647086,-155.07098725,0.00018,2]
[401416481,1768194647096,-151.45444701,0.00018,2]
[401416482,1768194647105,-151.66154832,0.00018,2]
[401416483,1768194647115,-155.70825827,0.00018,2]
[401416484,1768194647124,-152.37123583,0.00018,2]
[401416485,1768194647134,-248.59699216,0.00018,2]
[401416486,1768194647144,-152.34445976,0.00018,2]
[401416487,1768194647155,-350.68764993,0.00018,2]
[401416488,1768194647165,-13316.88443297,0.00018,2]
[401416489,1768194647175,-200.0,0.00018,2]
[401416490,1768194647185,-6749689.07812236,0.00018,2]
[401416491,1768194647195,-78007.47773826,0.00018,2]
[401416492,1768194647204,-57090.77200628,0.00018,2]
[401416493,1768194647224,-890.978,0.00018,2]
[401416494,1768194647237,-723.72753373,0.00018,2]
[401416495,1768194648604,-1.7e-07,0.00018,2]
[401416496,1768194648617,-3117.01037146,0.00018,2]
[401416497,1768194650020,-38.24272308,0.00016086,3]
[401416498,1768194650781,-460.555,0.00016086,3]
[401416499,1768194650793,-334.64227692,0.00016086,3]
[401416500,1768194650802,-898.37969454,0.0001744,2]
[401416501,1768194650813,-635.87585937,0.0001744,2]
[401416502,1768194650862,-1846.69777687,0.0001744,2]
[401416503,1768194650874,-3175.04666922,0.0001744,2]
[401416504,1768194651194,-104.08393072,0.00018,2]
[401416505,1768194651218,-3878.87474166,0.00018,2]
[401416506,1768194651231,-320.68433444,0.00018,2]